Cogmind - Beta 10.2 @@@ ROGUE MODE // 2022.01.15 @ 11:51:21 Player: MechanizedGirth Result: Destroyed by G-47 Trooper with Particle Gun Performance ------------- Evolutions (2) 1000 Regions Visited (4) 800 Robots Destroyed (63) 315 Value Destroyed (1715) 1715 Prototype IDs (1) 20 Alien Tech Used (0) 0 Bonus (132) 132 TOTAL SCORE: 3982 Bonus ------- High Alert Combat Kills 132 Cogmind --------- Core Integrity 0/550 Matter 104/300 Energy 100/100 System Corruption 8% Temperature Cool (625) Movement Core (150) Ox2 Location -8/Storage Parts ------- > --- POWER (1) -------- (None) > --- PROPULSION (4) --- (None) > --- UTILITY (4) ------ Improved Heat Sink Medium Storage Unit Signal Interpreter > --- WEAPON (2) ------- (None) > --- INVENTORY (8) ---- Improved Heat Sink Advanced Terrain Scanner Terrain Scan Processor Improved ECM Suite Compact Ion Cannon Compact Ion Cannon Compact Ion Cannon Peak State ------------ > --- POWER ------------ Light Nuclear Core > --- PROPULSION ------- Wheel Wheel Wheel Wheel > --- UTILITY ---------- Medium Storage Unit Signal Interpreter Improved Weapon Shielding > --- WEAPON ----------- Ion Cannon Compact Ion Cannon > --- INVENTORY -------- Improved Heat Sink Improved Heat Sink Advanced Terrain Scanner Terrain Scan Processor Improved ECM Suite Compact Ion Cannon Compact Ion Cannon Compact Ion Cannon [Rating: 24] Favorites ----------- Power Ion Engine Engine Ion Engine Power Core Light Nuclear Core Propulsion Aluminum Leg Leg Aluminum Leg Wheel Wheel Utility Medium Storage Unit Device Shield Generator Storage Medium Storage Unit Processor Signal Interpreter Hackware Hacking Suite Protection Hardened Medium Armor Plating Weapon Assault Rifle Energy Gun Heavy EM Pulse Gun Energy Cannon Ion Cannon Ballistic Gun Assault Rifle Launcher Missile Launcher Build | -11 -10 -9 -8 -8 ------- Run | Scr Mat Mat Mat Sto Slots Evolved 4 | . . 2 2 . Power . | . . . . . Propulsion 2 | . . . 2 . Utility 2 | . . 2 . . Weapon . | . . . . . Parts Attached 53 | 7 9 7 6 24 Power 6 | 1 1 . 1 3 Engine 4 | 1 1 . . 2 Core 2 | . . . 1 1 Reactor . | . . . . . Propulsion 15 | 2 . 2 3 8 Treads . | . . . . . Leg 8 | . . 2 3 3 Wheel 7 | 2 . . . 5 Hover . | . . . . . Flight . | . . . . . Utility 14 | 2 3 3 . 6 Device 6 | 1 2 1 . 2 Storage 3 | 1 1 . . 1 Processor 2 | . . 2 . . Hackware 1 | . . . . 1 Protection 2 | . . . . 2 Artifact . | . . . . . Weapon 18 | 2 5 2 2 7 Energy Gun 7 | 1 3 . . 3 Energy Cannon 4 | . . . 1 3 Ballistic Gun 4 | 1 1 1 . 1 Ballistic Cannon . | . . . . . Launcher 3 | . 1 1 1 . Special Weapon . | . . . . . Impact Weapon . | . . . . . Slashing Weapon . | . . . . . Piercing Weapon . | . . . . . Special Melee Weapon . | . . . . . Unidentified Prototypes 1 | . . . . 1 Parts Lost 27 | . . 4 . 23 Power 4 | . . . . 4 Propulsion 9 | . . 1 . 8 Utility 4 | . . 1 . 3 Weapon 10 | . . 2 . 8 Highest Loss Streak 7 | . . 3 . 7 Average Slot Usage (%) 87 | . 96 89 99 81 Engine 6 | . 14 11 5 3 Core 2 | . . . 3 3 Leg 16 | . . 12 36 16 Wheel 9 | . 28 9 . 7 Device 4 | . 13 4 9 2 Storage 9 | . 14 11 9 8 Processor 15 | . . 22 18 15 Hackware 1 | . . . . 2 Protection 3 | . . . . 5 Energy Gun 4 | . 10 3 . 3 Energy Cannon 3 | . . . . 6 Ballistic Gun 6 | . 14 9 8 3 Launcher 3 | . . 6 9 2 Naked Turns . | . . . . . Heaviest Build 29 | 14 18 23 27 29 Greatest Support 45 | 20 20 20 45 45 Greatest Overweight (x) 8 | 4 . 1 . 8 Average Overweight (x) . | . . . . . Largest Inventory Capacity 8 | 6 8 8 8 8 Average Capacity 7 | 5 6 8 8 7 Most Carried 8 | 3 6 8 8 8 Average Carried 6 | 1 4 7 7 6 Final Capacity 8 | 6 8 8 8 8 Final Carried 8 | 2 4 8 8 7 Class Distribution -------------------- 50% | Scavenger-Mutant 49% | Mutant Dominant Class ---------------- Mutant | -10/Materials Scavenger-Mutant | -9/Materials Scavenger-Mutant | -8/Materials Scavenger-Mutant | -8/Storage Resources | -11 -10 -9 -8 -8 ----------- Run | Scr Mat Mat Mat Sto Matter Collected 1469 | 290 159 232 139 649 Remotely . | . . . . . Salvage Created 2182 | 160 203 401 213 1205 Parts 119 | 13 16 22 5 63 Haulers Intercepted 1 | . . . . 1 Recyclers Shooed 1 | . . 1 . . Parts Field Recycled . | . . . . . Retrieved Matter . | . . . . . Parts Self-Destructed . | . . . . . Prevented . | . . . . . Kills | -11 -10 -9 -8 -8 ------- Run | Scr Mat Mat Mat Sto Combat Hostiles Destroyed 37 | . 6 7 5 19 Guns 21 | . 6 5 3 7 Cannons 9 | . . . . 9 AOE 7 | . . 2 2 3 Classes Destroyed 12 | 2 4 3 1 2 Worker 4 | . 1 1 . 2 Builder 7 | . 1 1 . 5 Tunneler 4 | 3 . 1 . . Hauler 1 | . . . . 1 Recycler 6 | 1 . 2 1 2 Operator 1 | . . 1 . . Watcher 3 | . . 2 . 1 Swarmer 4 | . 4 . . . Grunt 20 | . 2 6 2 10 Brawler 1 | . . . . 1 Duelist 1 | . . . 1 . Sentry 11 | . . 1 2 8 Best Kill Streak 10 | 3 4 10 5 6 Combat Bots Only 4 | . 4 3 4 4 Max Kills in Single Turn 3 | 1 1 3 1 3 Gunslinging . | . . . . . Exploded 1 | . . 1 1 1 Melee . | . . . . . Uniques/NPCs Destroyed . | . . . . . Combat | -11 -10 -9 -8 -8 -------- Run | Scr Mat Mat Mat Sto Damage Taken 3062 | . 330 369 183 2180 Core 743 | . 91 89 40 523 Absorbed by Shields 96 | . . . 74 22 Core Remaining (%) 80 | 100 63 77 . . Volleys Fired 184 | 12 21 33 15 103 Largest 2 | 2 2 2 2 2 Hottest 150 | 60 70 70 56 150 Shots Fired 298 | 24 42 39 25 168 Gun 210 | 24 40 33 15 98 Cannon 59 | . . . . 59 Launcher 29 | . 2 6 10 11 Special . | . . . . . Kinetic 126 | 12 21 27 15 51 Thermal 77 | . 4 6 . 67 Explosive 29 | . 2 6 10 11 Electromagnetic 66 | 12 15 . . 39 Robot Hit Streak 19 | 4 5 10 19 15 Robot Miss Streak 5 | 2 3 2 1 5 Penetration Max . | . . . . . Secondary Targets 2 | . 2 . . . Max Gunslinging Chain 1 | . 1 . . . Shots Hit Robots 179 | 14 22 29 21 93 Core Hits 101 | 4 10 22 15 50 Critical Hits . | . . . . . Critical Kills . | . . . . . Critical Parts Destroyed . | . . . . . Melee Attacks . | . . . . . Impact . | . . . . . Slashing . | . . . . . Piercing . | . . . . . Sneak Attacks . | . . . . . Combat Hostiles . | . . . . . Follow-up Attacks . | . . . . . Damage Inflicted 4359 | 160 311 945 611 2332 Guns 1793 | 160 251 321 162 899 Cannons 817 | . . . . 817 Explosions 1749 | . 60 624 449 616 Melee . | . . . . . Ramming . | . . . . . Kinetic 1012 | 57 86 257 162 450 Thermal 1012 | . 37 64 . 911 Explosive 1728 | . 60 624 449 595 Electromagnetic 607 | 103 128 . . 376 Impact . | . . . . . Slashing . | . . . . . Piercing . | . . . . . Highest Corruption 8 | . . . . 8 Average Corruption 7 | . . . . 7 Corruption Purged . | . . . . . Effects 33 | . . . . 33 Message Errors 2 | . . . . 2 Matter Fused 5 | . . . . 5 Heat Flow Errors 5 | . . . . 5 Energy Discharges 5 | . . . . 5 Parts Rejected 3 | . . . . 3 Data Loss (major) 1 | . . . . 1 Misfires 2 | . . . . 2 Targeting Errors 7 | . . . . 7 Weapon Failures 3 | . . . . 3 Overload Shots . | . . . . . Overflow Damage 53 | . . 7 . 46 Projectiles 13 | . . . . 13 Explosions 40 | . . 7 . 33 Melee . | . . . . . Knockbacks . | . . . . . Impact . | . . . . . Kinetic . | . . . . . Secondary . | . . . . . Self-Inflicted Damage 44 | . 39 5 . . Shots 2 | . 1 1 . . Rammed . | . . . . . Targets Rammed . | . . . . . Kicked . | . . . . . Crushed . | . . . . . Highest Temperature 893 | . 60 29 4 893 Average Temperature 153 | . 27 13 4 170 Received Heat Transfer 1365 | . 48 207 66 1044 Effects 26 | . . . . 26 Shutdowns 1 | . . . . 1 Interference 3 | . . . . 3 Matter Decay 5 | . . . . 5 Short Circuit 1 | . . . . 1 Damage (minor) 1 | . . . . 1 Damage (major) 14 | . . . . 14 Damage (core) 1 | . . . . 1 Siege Activations . | . . . . . Robots Corrupted . | . . . . . Combat Hostiles . | . . . . . Parts Fried . | . . . . . Impact Corruptions . | . . . . . Robots Melted . | . . . . . Combat Hostiles . | . . . . . Parts Melted . | . . . . . Heat Transferred 1789 | . 111 185 . 1493 Parts Sabotaged . | . . . . . Parts Stolen . | . . . . . Parts Stripped . | . . . . . Power Chain Reactions 1 | . . . . 1 Missiles Intercepted . | . . . . . Alert | -11 -10 -9 -8 -8 ------- Run | Scr Mat Mat Mat Sto Peak Influence 663 | 20 215 367 317 663 Initial 133 | . 13 90 70 133 Average 296 | 9 130 207 191 420 Maximum Alert Level 2 | . 1 1 1 2 Low Security (%) 31 | 100 58 53 49 6 Level 1 36 | . 41 46 50 30 Level 2 32 | . . . . 63 Level 3 . | . . . . . Level 4 . | . . . . . Level 5 . | . . . . . High Security . | . . . . . Max Security . | . . . . . Squads Dispatched 9 | . 2 3 . 4 Investigation 2 | . . . . 2 Extermination . | . . . . . Reinforcement 7 | . 2 3 . 2 Assault . | . . . . . Garrison . | . . . . . Intercept . | . . . . . Construction Impeded . | . . . . . Haulers Reinforced . | . . . . . Stealth | -11 -10 -9 -8 -8 --------- Run | Scr Mat Mat Mat Sto Distress Signals 7 | . 1 2 . 4 Communications Jammed . | . . . . . Distress Signals . | . . . . . Times Spotted 67 | . 8 14 8 37 Peak Tracking Total 5 | . 5 4 4 5 Tactical Retreats 8 | . . 1 1 6 Traps | -11 -10 -9 -8 -8 ------- Run | Scr Mat Mat Mat Sto Traps Triggered 4 | . . . . 4 Indirectly . | . . . . . Trap Hack Attempts . | . . . . . Triggered . | . . . . . Disarmed . | . . . . . Reprogrammed . | . . . . . Reused . | . . . . . Traps Extracted . | . . . . . Installed . | . . . . . Triggered . | . . . . . Machines | -11 -10 -9 -8 -8 ---------- Run | Scr Mat Mat Mat Sto Machines Disabled 8 | . 1 2 . 5 Max in Single Turn 1 | . 1 1 . 1 Machines Sabotaged . | . . . . . Garrisons Compromised . | . . . . . Overloaded Fab Kills . | . . . . . Fab Network Shutdowns . | . . . . . Hacking | -11 -10 -9 -8 -8 --------- Run | Scr Mat Mat Mat Sto Machines Accessed 10 | . 2 1 3 4 Terminals 7 | . 1 1 2 3 Fabricators . | . . . . . Repair Stations 2 | . 1 . . 1 Recycling Units 1 | . . . 1 . Scanalyzers . | . . . . . Garrison Access . | . . . . . Total Hacks 24 | . 7 2 5 10 Successful 16 | . 4 1 4 7 Failed 8 | . 3 1 1 3 Catastrophic 1 | . 1 . . . Database Lockouts . | . . . . . Manual . | . . . . . Terminals 11 | . 1 2 4 4 Fabricators . | . . . . . Repair Stations 12 | . 6 . . 6 Recycling Units 1 | . . . 1 . Scanalyzers . | . . . . . Garrison Access . | . . . . . Terminal Hacks 7 | . 1 1 3 2 Record 3 | . 1 . 2 . Open Door 1 | . . . . 1 Emergency Access Points 1 | . . . 1 . Locate Traps 1 | . . . . 1 Maintenance Status 1 | . . 1 . . Fabricator Hacks . | . . . . . Repair Station Hacks 8 | . 3 . . 5 Scan Component 5 | . 2 . . 3 Repair 3 | . 1 . . 2 Recycling Unit Hacks 1 | . . . 1 . Process 1 | . . . 1 . Scanalyzer . | . . . . . Garrison Access Hacks . | . . . . . Unauthorized Hacks . | . . . . . Terminals . | . . . . . Fabricators . | . . . . . Repair Stations . | . . . . . Recycling Units . | . . . . . Scanalyzers . | . . . . . Garrison Access . | . . . . . Data Cores Recovered . | . . . . . Used . | . . . . . Hacking Detections 10 | . 2 1 3 4 Full Trace Events 1 | . . . . 1 Feedback Events . | . . . . . Feedback Blocked . | . . . . . Robot Schematics Acquired . | . . . . . Robots Built . | . . . . . Matter . | . . . . . Time . | . . . . . Total Robot Build Rating . | . . . . . Part Schematics Acquired . | . . . . . Parts Built . | . . . . . Matter . | . . . . . Time . | . . . . . Total Part Build Rating . | . . . . . Parts Repaired 3 | . 1 . . 2 Time 78 | . 26 . . 52 Parts Recycled . | . . . . . Recycled Matter 16 | . . . 16 . Retrieved Matter . | . . . . . Retrieved Components . | . . . . . Parts Scanalyzed . | . . . . . Part Schematics Acquired . | . . . . . Parts Damaged . | . . . . . Bothacking | -11 -10 -9 -8 -8 ------------ Run | Scr Mat Mat Mat Sto Used RIF Installer . | . . . . . Robots Hacked . | . . . . . Non-combat . | . . . . . Combat . | . . . . . Robot Hacks Applied . | . . . . . Relay Couplers Released . | . . . . . Robots Rewired . | . . . . . Allies Hacked . | . . . . . Hacks Repelled . | . . . . . Allies | -11 -10 -9 -8 -8 -------- Run | Scr Mat Mat Mat Sto Total Allies . | . . . . . Largest Group . | . . . . . Highest-Rated Group . | . . . . . Highest-Rated Ally . | . . . . . Total Orders . | . . . . . Ally Attacks . | . . . . . Total Damage . | . . . . . Kills . | . . . . . Allies Corrupted . | . . . . . Allies Melted . | . . . . . Intel | -11 -10 -9 -8 -8 ------- Run | Scr Mat Mat Mat Sto Robot Analysis Total . | . . . . . Derelict Logs Recovered . | . . . . . Drone Launches . | . . . . . Drone Recoveries . | . . . . . Exploration | -11 -10 -9 -8 -8 ------------- Run | Scr Mat Mat Mat Sto Turns Passed 2298 | 92 283 427 323 1173 Spaces Moved 1488 | 45 249 299 215 680 Core 16 | 10 . . . 6 Treads . | . . . . . Legs 787 | . . 149 215 423 Wheels 685 | 35 249 150 . 251 Hover . | . . . . . Flight . | . . . . . Fastest Speed 50 | 50 80 80 120 80 Average Speed 107 | 90 80 110 120 114 Slowest Speed 450 | 250 80 150 120 450 Overloaded Moves . | . . . . . Propulsion Burnouts . | . . . . . Robots Hopped . | . . . . . Cave-ins Triggered . | . . . . . Exploration Rate (%) 29 | 3 31 22 17 72 Regions Visited 4 Branch Regions 1 Pre-discovered Areas . | . . . . . Known Exits Taken 2 | . . 1 1 . Unknown Exits Taken 2 | 1 1 . . . Scrap Searched . | . . . . . Spaces Dug . | . . . . . Terrain Destroyed 233 | . 7 37 86 103 Melee . | . . . . . Projectile 14 | . . . . 14 AOE 219 | . 7 37 86 89 Terrain Rammed . | . . . . . Walls Destroyed . | . . . . . Machines Disabled . | . . . . . Actions | -11 -10 -9 -8 -8 --------- Run | Scr Mat Mat Mat Sto Total 1893 | 72 295 355 255 916 Wait 96 | . 1 8 7 80 Move 1484 | 44 248 298 214 680 Hop . | . . . . . Pick Up 54 | 9 6 8 7 24 Fast Attach 9 | . 1 3 1 4 Attach 44 | 7 8 4 5 20 Detach 7 | . 6 . . 1 Swap . | . . . . . Drop 15 | . 4 1 6 4 Fire 184 | 12 21 33 15 103 Melee . | . . . . . Ram . | . . . . . Kick . | . . . . . Crush . | . . . . . Escape Stasis . | . . . . . Rewire . | . . . . . Trap . | . . . . . Miscellaneous . | . . . . . Route ------- -11/Scrapyard -10/Materials -9/Materials -8/Materials -8/Storage History --------- Turn | Location | Event 2 | -11/Scrapyard | Met Revision 17 34 | -11/Scrapyard | Discovered new exit (range 14) 93 | -11/Scrapyard | Entered Materials 294 | -10/Materials | Discovered new exit (range 15) 304 | -10/Materials | Build established: Mutant 340 | -10/Materials | Repaired Med. Laser? 376 | -10/Materials | Entered another Materials area 376 | -9/Materials | Evolved 2 slots: Utility x2 566 | -9/Materials | Discovered new exit (range 9) 577 | -9/Materials | Lost 3 parts (1n1u1w) 802 | -9/Materials | Identified exit to Materials 803 | -9/Materials | Entered another Materials area 803 | -8/Materials | Evolved 2 slots: Propulsion x2 858 | -8/Materials | Build established: Scavenger-Mutant 924 | -8/Materials | Discovered new exit (range 15) 1087 | -8/Materials | Identified exit to Storage 1126 | -8/Materials | Entered Storage 1556 | -8/Storage | Lost 4 parts (1n1u2w) 1877 | -8/Storage | Build established: Mutant 2038 | -8/Storage | Lost 3 parts (1p1n1w) 2160 | -8/Storage | Repaired Wheel 2186 | -8/Storage | Repaired Med. Storage Unit 2258 | -8/Storage | Core integrity fell below 50% 2284 | -8/Storage | Core integrity fell below 20% 2299 | -8/Storage | Destroyed by G-47 Trooper with Particle Gun Last Messages --------------- 02277_ Signal Interpreter temporarily disabled. 02277_ Com. Ion Cannon temporarily disabled. 02278_ Overheating: Com. Ion Cannon damaged (-50). 02278_ Overheating: Ion Cannon damaged (-3). 02278_ Wheel destroyed. 02279_ Overheating: Imp. Weapon Shielding damaged (-40). 02279_ Overheating: Ion Cannon damaged (-1). 02279_ Overheating: Com. Ion Cannon damaged (-10). 02279_ Overheating: Signal Interpreter damaged (-13). 02280_ M-13 Machinist fits Backup Power I on G-47 Trooper. 02281_ Imp. Weapon Shielding destroyed. 02281_ Ion Cannon destroyed. 02282_ Overheating: Matter decay (-60). 02282_ Com. Ion Cannon destroyed. 02286_ Overheating: Matter decay (-45). 02287_ Overheating: Matter decay (-38). 02289_ Overheating: System interference. 02289_ Imp. Heat Sink temporarily disabled. 02289_ System corrupted: Heat flow error (+262). 02294_ K-01 Serf collects debris. Map ----- +----------------------------------------------------+ | | | | | | | | | | | | | | | | | | | ????????????????????????????????????????????????? | | ????????????????????????????????????????????????? | | ????????????????????????????????????????????????? | | ????????????????????????????????????????????????? | | ????????????????????????????????????????????????? | | ####????????????????????????????????????????????? | | #????????????????????????????????????????????? | | #????????????????????????????????????????????? | | #????????????????????????????????????????????? | | #????????????????????????????????????????????? | | #????????????????????###?????????????????????? | | #??????????????????###T######????????????????? | | ! #?????????????????## #????????????????? | | #?????????????????#;o """ ###??????????????? | | #?????????????????# """ ""#??????????????? | | #+##????????????????###*[""" Y"#??????????????? | | # #?????????????????#""%!@ ""#??????????????? | | # #????###??????????#" gg "" ###??????????????? | | #=#????#%########???# * !"" ############?????? | | # ###### #???##%!%%"" ## "T" #?????? | | % + " #######!k=m= ## ####??? | | ##### """ # ###;;+#+### """#??? | | #???# """ # * ^ # """" R"#??? | | % #???# + ^ + """" """#??? | | % #???# """ # " "" # """" =####??? | | #???# """ # """" # """" !%##???? | | #???# """ ##"" """ # *"#???? | | %##??# ##"Y % """" ##+##########???? | | !!##??###########"" """" #????????????? | | !!##????????????# ! #????????????? | | =##??????""" + #????????????? | | !% ##??????""" # ###T##"T"####+#????????????? | | %! #????????"" # #?######### #????????????? | | #??????? ?# #?????????# #????????????? | | #???????""" ??# #?????????# [#????????????? | | #???????""????# ??????????# ]]#????????????? | | #?????????????# ??????????#####????????????? | | #?????????????# ???????????????????????????? | | #?????????????# ???????????????????????????? | | #?????????????# ???????????????????????????? | | #?????????????# ???????????????????????????? | +----------------------------------------------------+ Best States ------------- Heat Dissipation 31 Energy Generation 14 Energy Capacity 265 Matter Stores 300 Matter Capacity 300 Sight Range 16 Robot Scan Range 10 Terrain Scan Range 16 Terrain Scan Density 60 Base Temperature (-) 100 Armor Coverage 225 Weapon Shielding 66 Evasion (%) 44 Offensive Hacking 10 Item Schematics ----------------- None Robot Schematics ------------------ None Fabricated ------------ Nothing Alien Tech Used ----------------- None Achievements -------------- None Challenges ------------ None Game ------ Seed AbsorptionTeslaWell Manual? 0 Play Time 01:08:53 Cumulative 12.5 hours Start 2021.11.09 @ 16:53:18 End 2022.01.15 @ 11:51:21 Sessions 3 Manual Loads 0 Difficulty Rogue Special Mode None Game No. 13 Rogue 13 Adventurer 0 Explorer 0 Win Type - Total 0 Types 0/0/0/0/0/0/0/0/0 Lore% 14 Gallery% 17 Achievement% 13 Wizard Run 0 Options --------- ASCII 0 Keyboard 0 Movement Mouse Keybinds 0 Fullscreen 0 Font 16/SmallcapsGlow Map View 76x50 Tactical HUD 1 Map Filters NONE Filters NONE Steam 1 RUN: 5bb208b7-80fd-470f-9fbd-bac7fd35be56